fUSD/lending_fUSD_20240821
["ID","MTS","AMOUNT","RATE_DAILY","PERIOD"]
[335489025,1724268645988,-17087.60699197,0.00010689,2]
[335489026,1724268646004,-366.243,0.00010689,2]
[335489047,1724268698893,1000.0,9.435e-05,2]
[335489054,1724268722544,395.88,9.435e-05,2]
[335489055,1724268989469,442.64,8.219e-05,2]
[335489056,1724269005472,454.75953035,9.91e-05,2]
[335489057,1724269017822,-333.09522145,9.943e-05,2]
[335489058,1724269017844,-249.75,9.943e-05,2]
[335489059,1724269017867,-442.64,0.00010457,2]
[335489060,1724269017888,-262.0,0.00010488,2]
[335489061,1724269017910,-150.0,0.00010488,2]
[335489062,1724269017934,-11112.51477855,0.00010489,2]
[335489063,1724269098581,230.64,9.646e-05,2]
[335489064,1724269106493,197.88,9.646e-05,2]
[335489065,1724269149480,23900.0,9.646e-05,2]
[335489066,1724269169319,760.65799889,9.646e-05,2]
[335489067,1724269170206,1099.36692642,9.646e-05,2]
[335489068,1724269186341,159.14561955,9.646e-05,2]
[335489069,1724269191487,291.80613083,9.646e-05,2]
[335489070,1724269259327,760.39317433,9.646e-05,2]
[335489071,1724269275599,200.0,9.897e-05,2]
[335489072,1724269464114,693.0340361,9.897e-05,2]
[335489073,1724269515908,150.0,9.888e-05,2]
[335489074,1724269527165,250.0,9.742e-05,2]
[335489079,1724269616322,23900.0,9.719e-05,2]
[335489113,1724269622024,458.44,8.219e-05,2]
[335489114,1724269695932,241.69,9.636e-05,2]
[335489115,1724269706886,239.76,9.623e-05,2]
[335489116,1724269707273,238.07,9.655e-05,2]
[335489117,1724269711036,2079.331063,9.893e-05,2]
[335489118,1724269735811,19751.36224408,9.909e-05,2]
[335489119,1724269755011,-2842.93384209,9.962e-05,2]
[335489120,1724269755034,-10538.92504884,9.988e-05,2]
[335489121,1724269755056,-15492.73021133,9.999e-05,2]
[335489122,1724269755076,-12083.79869084,0.0001,2]
[335489123,1724269766554,-155.0,0.00010009,2]
[335489124,1724269766575,-155.0,0.00010009,2]
[335489125,1724269766595,-3875.99346564,0.00010026,2]
[335489126,1724269766617,-463.6156368,0.00010026,2]
[335489127,1724269766641,-157.70095368,0.00010026,2]
[335489128,1724269766661,-352.6593,0.00010289,2]
[335489129,1724269766682,-150.0,0.00010356,2]
[335489130,1724269766703,-22096.4355,0.00010389,2]
[335489131,1724269766724,-730.0594,0.00010389,2]
[335489132,1724269766745,-2104.6987,0.00010389,2]
[335489133,1724269766765,-5583.0098,0.00010389,2]
[335489134,1724269766786,-383.1313,0.00010389,2]
[335489135,1724269766810,-15334.2502076,0.00010389,2]
[335489142,1724269831973,-598.85331413,0.00010026,2]
[335489143,1724269832035,-457.29170079,0.00010026,2]
[335489144,1724269832046,-1508.69661,0.00010026,2]
[335489145,1724269832135,-2115.32344075,0.00010026,2]
[335489146,1724269832144,-1298.58278501,0.00010097,2]
[335489147,1724269832153,-2342.45587798,0.00010097,2]
[335489148,1724269832163,-388.42115394,0.00010097,2]
[335489149,1724269832174,-751.43504494,0.00010097,2]
[335489150,1724269832183,-264.38222765,0.00010289,2]
[335489151,1724269832201,-498.6429475,0.00010289,2]
[335489152,1724269832211,-1026.39824093,0.00010289,2]
[335489180,1724269837934,-33004.17658392,0.00010289,2]
[335489181,1724269837948,-60524.6144839,0.00010379,2]
[335489182,1724269837962,-300.0,0.00010388,2]
[335489183,1724269837974,-413.35824992,0.00010389,2]
[335489184,1724269837986,-289.95309064,0.00010389,2]
[335489185,1724269838000,-181.97999253,0.00010389,2]
[335489186,1724269838012,-72128.0324924,0.00010389,2]
[335489187,1724269838023,-1147.851,0.00010389,2]
[335489188,1724269838035,-4148.35,0.00010389,2]
[335489189,1724269838046,-304.09094001,0.00010405,2]
[335489190,1724269838059,-458.44,0.00010461,2]
[335489191,1724269838071,-150.99,0.00010461,2]
[335489192,1724269838084,-999.99,0.00010461,2]
[335489193,1724269838094,-322.19,0.00010461,2]
[335489194,1724269838106,-599.86,0.00010461,2]
[335489195,1724269838117,-1081.78,0.00010461,2]
[335489196,1724269838129,-5321.19,0.00010461,2]
[335489197,1724269838142,-51498.3,0.00010471,2]
[335489198,1724269838154,-2386.8149171,0.00010471,2]
[335489199,1724269838166,-3939.02654262,0.00010471,2]
[335489200,1724269838184,-300.1872949,0.00010489,2]
[335489201,1724269838197,-170.6347928,0.00010489,2]
[335489202,1724269838209,-1051.05102404,0.00010489,2]
[335489203,1724269838219,-485.07840464,0.00010489,2]
[335489204,1724269838229,-162.85453106,0.00010489,2]
[335489205,1724269838239,-911.68,0.00010489,2]
[335489206,1724269838250,-362.17182145,0.00010489,2]
[335489208,1724269838263,-51838.57904891,0.00010489,2]
[335489210,1724269838279,-22537.18002361,0.00010489,2]
[335489212,1724269838291,-572.56166098,0.00010489,2]
[335489215,1724269838305,-1079.34910173,0.00010489,2]
[335489217,1724269838319,-373.59450961,0.00010489,2]
[335489220,1724269838333,-13695.0,0.00010489,2]
[335489222,1724269838345,-528.87061222,0.00010489,2]
[335489224,1724269838364,-1136.8850001,0.00010489,2]
[335489226,1724269838379,-424.5,0.00010489,2]
[335489229,1724269838394,-9987.90608371,0.00010489,2]
[335489232,1724269838406,-618.75914436,0.00010489,2]
[335489234,1724269838423,-585.14741553,0.00010489,2]
[335489238,1724269838451,-3060.15071266,0.00010489,2]
[335489240,1724269838464,-18081.29658173,0.00010489,2]
[335489243,1724269838477,-5200.0,0.00010489,2]
[335489246,1724269838495,-420.0,0.00010489,2]
[335489249,1724269838518,-1169.55400002,0.00010489,2]
[335489251,1724269838531,-914.81898883,0.00010489,2]
[335489254,1724269838544,-796.44791203,0.00010489,2]
[335489287,1724269840044,-933.43431332,0.00010489,2]
[335489288,1724269840059,-859.60446392,0.00010489,2]
[335489289,1724269840072,-1034.355,0.00010489,2]
[335489290,1724269840086,-2198.49212684,0.00010489,2]
[335489291,1724269840111,-72268.96257793,0.00010489,2]
[335489292,1724269840126,-359.44640036,0.00010489,2]
[335489293,1724269840140,-998.05623126,0.00010489,2]
[335489294,1724269840155,-1273.216,0.00010489,2]
[335489295,1724269840169,-2466.13155549,0.00010489,2]
[335489296,1724269840187,-5184.20181618,0.00010489,2]
[335489297,1724269840200,-2690.56098814,0.00010489,2]
[335489298,1724269840238,-21712.93773053,0.00010489,2]
[335489299,1724269840250,-1739.57017204,0.00010505,2]
[335489300,1724269840262,-485.32685972,0.00010505,2]
[335489301,1724269840274,-600.70924328,0.00010505,2]
[335489302,1724269840286,-629.05909233,0.00010566,2]
[335489303,1724269840298,-155.0,0.00010566,2]
[335489304,1724269840310,-155.0,0.00010566,2]
[335489305,1724269840322,-309.47911508,0.00010566,2]
[335489306,1724269840334,-500.0,0.00010568,2]
[335489307,1724269840343,-163.6,0.00010568,2]
[335489308,1724269840352,-500.0,0.00010568,2]
[335489309,1724269840362,-162.08193888,0.00010579,2]
[335489310,1724269840371,-151.0,0.00010589,2]
[335489311,1724269840380,-152.905915,0.00010589,2]
[335489312,1724269840390,-151.0,0.00010589,2]
[335489313,1724269840401,-151.0,0.00010589,2]
[335489314,1724269840411,-151.0,0.00010589,2]
[335489315,1724269840420,-151.0,0.00010589,2]
[335489316,1724269840631,-151.391033,0.00010589,2]
[335489317,1724269840653,-151.0,0.00010589,2]
[335489318,1724269840665,-151.0,0.00010589,2]
[335489319,1724269840675,-151.0,0.00010589,2]
[335489320,1724269840684,-151.0,0.00010589,2]
[335489321,1724269840693,-151.0,0.00010589,2]
[335489322,1724269840702,-151.0,0.00010589,2]
[335489323,1724269840712,-151.0,0.00010589,2]
[335489324,1724269840721,-155.584639,0.00010589,2]
[335489325,1724269840730,-151.0,0.00010589,2]
[335489326,1724269840739,-151.0,0.00010589,2]
[335489327,1724269840749,-151.0,0.00010589,2]
[335489328,1724269840757,-4491.2,0.00010589,2]
[335489329,1724269840766,-150.99,0.00010589,2]
[335489330,1724269840775,-299.99,0.00010589,2]
[335489331,1724269840784,-54713.17713039,0.00010589,2]
[335489332,1724269841016,-45286.82286961,0.00010589,2]
[335489333,1724269841026,-2962.7443,0.00010589,2]
[335489334,1724269841037,-1000.0,0.00010589,2]
[335489335,1724269841047,-469.56979843,0.00010589,2]
[335489336,1724269841059,-480.69010157,0.00010589,2]
[335489337,1724269841068,-1023.72163943,0.00010589,2]
[335489338,1724269841079,-1583.65548684,0.00010589,2]
[335489342,1724269842820,-155.0,0.00010566,2]
[335489343,1724269842834,-877.75,0.00010589,2]
[335489344,1724269842902,-744.52773811,0.00010589,2]
[335489365,1724269843185,-0.0184855,0.00010589,2]
[335489367,1724269843201,-992.57555336,0.00010589,2]
[335489370,1724269843217,-1626.45291562,0.00010589,2]
[335489372,1724269843228,-971.108,0.00010589,2]
[335489375,1724269843240,-18315.00000001,0.00010589,2]
[335489378,1724269843261,-3279.23238113,0.00010589,2]
[335489379,1724269843271,-705.5862,0.00010589,2]
[335489381,1724269843281,-14050.9812,0.00010589,2]
[335489383,1724269843290,-500.0,0.00010589,2]
[335489385,1724269843300,-9994.0787,0.00010589,2]
[335489387,1724269843309,-1592.06824958,0.0001059,2]
[335489389,1724269843318,-1000.0,0.00010615,2]
[335489391,1724269843327,-499.99,0.00010615,2]
[335489393,1724269843337,-1819.59186,0.00010689,2]
[335489394,1724269843346,-163.67346564,0.00010699,2]
[335489396,1724269843355,-203.91216292,0.00010699,2]
[335489398,1724269843364,-380.32741541,0.00010699,2]
[335489400,1724269843373,-365.91742403,0.00010699,2]
[335489401,1724269843382,-218.91005949,0.00010699,2]
[335489403,1724269843392,-155.0,0.00010699,2]
[335489405,1724269843401,-210.6709452,0.00010699,2]
[335489407,1724269843411,-347.79523898,0.00010699,2]
[335489408,1724269843420,-367.98538424,0.00010699,2]
[335489409,1724269843433,-328.33768382,0.00010699,2]
[335489410,1724269843442,-261.45759846,0.00010699,2]
[335489411,1724269843452,-164.40260801,0.00010699,2]
[335489412,1724269843461,-155.17072618,0.00010699,2]
[335489413,1724269843470,-159.60847032,0.00010699,2]
[335489414,1724269843480,-164.42462269,0.00010699,2]
[335489415,1724269843489,-236.34424982,0.00010713,2]
[335489416,1724269843498,-649.86351287,0.00010713,2]
[335489417,1724269843507,-151.0,0.00010799,2]
[335489418,1724269843516,-151.0,0.00010799,2]
[335489419,1724269843525,-151.0,0.00010799,2]
[335489420,1724269843534,-151.0,0.00010799,2]
[335489421,1724269843543,-151.0,0.00010799,2]
[335489422,1724269843552,-151.0,0.00010799,2]
[335489423,1724269843561,-151.0,0.00010799,2]
[335489424,1724269843570,-151.0,0.00010799,2]
[335489425,1724269843579,-151.0,0.00010799,2]
[335489426,1724269843589,-151.0,0.00010799,2]
[335489428,1724269843598,-153.465037,0.00010799,2]
[335489429,1724269843607,-151.0,0.00010799,2]
[335489431,1724269843616,-151.0,0.00010799,2]
[335489432,1724269843626,-151.0,0.00010799,2]
[335489433,1724269843635,-151.0,0.00010799,2]
[335489434,1724269843645,-151.0,0.00010799,2]
[335489435,1724269843654,-151.0,0.00010799,2]
[335489436,1724269843663,-151.0,0.00010799,2]
[335489437,1724269843672,-151.0,0.00010799,2]
[335489438,1724269843683,-151.0,0.00010799,2]
[335489439,1724269843692,-151.0,0.00010799,2]
[335489440,1724269843702,-151.0,0.00010799,2]
[335489441,1724269843711,-151.0,0.00010799,2]
[335489442,1724269843720,-151.0,0.00010799,2]
[335489443,1724269843729,-164.281101,0.00010799,2]
[335489444,1724269843738,-151.0,0.00010799,2]
[335489445,1724269843747,-151.0,0.00010799,2]
[335489446,1724269843757,-151.0,0.00010799,2]
[335489447,1724269843767,-151.0,0.00010799,2]
[335489448,1724269843776,-151.0,0.00010799,2]
[335489449,1724269843785,-151.0,0.00010799,2]
[335489450,1724269843794,-151.0,0.00010799,2]
[335489451,1724269843803,-151.0,0.00010799,2]
[335489452,1724269843813,-151.0,0.00010799,2]
[335489453,1724269843822,-151.390341,0.00010799,2]
[335489454,1724269843832,-151.0,0.00010799,2]
[335489455,1724269843845,-357.45302385,0.00010799,2]
[335489456,1724269843854,-529.01492508,0.00010799,2]
[335489458,1724269843864,-155.0,0.00010799,2]
[335489460,1724269843874,-212.61607394,0.00010799,2]
[335489461,1724269843884,-432.47832469,0.00010799,2]
[335489463,1724269843893,-203.41395605,0.00010799,2]
[335489464,1724269843902,-6398.51135934,0.000108,2]
[335489465,1724269843912,-530.74,0.000108,2]
[335489466,1724269843921,-534.92,0.000108,2]
[335489467,1724269843932,-150.0,0.000108,2]
[335489468,1724269843941,-712.54,0.000108,2]
[335489469,1724269843951,-340.4,0.000108,2]
[335489470,1724269843960,-426.79,0.000108,2]
[335489471,1724269843969,-531.48,0.000108,2]
[335489472,1724269843978,-150.0,0.000108,2]
[335489473,1724269843987,-151.0,0.000108,2]
[335489474,1724269843996,-151.0,0.000108,2]
[335489475,1724269844006,-151.0,0.000108,2]
[335489476,1724269844015,-151.0,0.000108,2]
[335489477,1724269844024,-151.0,0.000108,2]
[335489478,1724269844033,-151.0,0.000108,2]
[335489479,1724269844042,-151.0,0.000108,2]
[335489480,1724269844051,-151.0,0.000108,2]
[335489481,1724269844060,-151.0,0.000108,2]
[335489482,1724269844069,-151.0,0.000108,2]
[335489483,1724269844078,-151.0,0.000108,2]
[335489484,1724269844087,-151.558305,0.000108,2]
[335489485,1724269844096,-151.0,0.000108,2]
[335489486,1724269844105,-151.0,0.000108,2]
[335489487,1724269844114,-619.09,0.000108,2]
[335489488,1724269844123,-391.6,0.000108,2]
[335489489,1724269844132,-3101.93,0.00010835,2]
[335489490,1724269844141,-974.71460667,0.00010835,2]
[335489491,1724269844150,-241.69,0.0001084,2]
[335489492,1724269844159,-197.88,0.00010852,2]
[335489493,1724269844168,-155.0,0.00010861,2]
[335489494,1724269844179,-151.0,0.00010861,2]
[335489495,1724269844188,-151.0,0.00010861,2]
[335489496,1724269844197,-151.363105,0.00010861,2]
[335489497,1724269844207,-151.0,0.00010861,2]
[335489498,1724269844217,-151.0,0.00010861,2]
[335489499,1724269844226,-34863.59245755,0.0001088,2]
[335489500,1724269844235,-151.0,0.0001088,2]
[335489501,1724269844243,-190.735722,0.0001088,2]
[335489502,1724269844252,-155.192828,0.0001088,2]
[335489503,1724269844262,-151.0,0.0001088,2]
[335489504,1724269844271,-151.0,0.0001088,2]
[335489505,1724269844280,-151.0,0.0001088,2]
[335489506,1724269844289,-151.0,0.0001088,2]
[335489507,1724269844297,-151.0,0.0001088,2]
[335489508,1724269844306,-270.62814649,0.00010888,2]
[335489509,1724269844315,-151.0,0.00010899,2]
[335489510,1724269844324,-151.0,0.00010899,2]
[335489511,1724269844333,-151.0,0.00010899,2]
[335489512,1724269844342,-151.0,0.00010899,2]
[335489513,1724269844351,-151.0,0.00010899,2]
[335489514,1724269844360,-151.0,0.00010899,2]
[335489515,1724269844368,-151.0,0.00010899,2]
[335489516,1724269844377,-151.0,0.00010899,2]
[335489517,1724269844386,-151.0,0.00010899,2]
[335489518,1724269844395,-151.0,0.00010899,2]
[335489519,1724269844404,-266.762262,0.00010899,2]
[335489520,1724269844413,-151.0,0.00010899,2]
[335489521,1724269844422,-151.871099,0.00010899,2]
[335489522,1724269844441,-151.0,0.00010899,2]
[335489523,1724269844450,-151.0,0.00010899,2]
[335489524,1724269844460,-151.0,0.00010899,2]
[335489525,1724269844470,-151.0,0.00010899,2]
[335489526,1724269844479,-151.0,0.00010899,2]
[335489527,1724269844488,-151.0,0.00010899,2]
[335489528,1724269844497,-151.0,0.00010899,2]
[335489529,1724269844506,-454.75953035,0.00010899,2]
[335489530,1724269844516,-16311.11166585,0.00010899,2]
[335489531,1724269844526,-16311.11166584,0.00010899,2]
[335489532,1724269844535,-7500.0,0.000109,2]
[335489533,1724269844544,-76125.2838134,0.000109,2]
[335489534,1724269844553,-172.47269745,0.000109,2]
[335489535,1724269844562,-151.0,0.000109,2]
[335489536,1724269844570,-151.0,0.000109,2]
[335489537,1724269844579,-151.0,0.00010949,2]
[335489538,1724269844588,-151.0,0.00010949,2]
[335489539,1724269844597,-151.0,0.00010949,2]
[335489540,1724269844606,-151.0,0.00010949,2]
[335489541,1724269844615,-151.0,0.00010949,2]
[335489542,1724269844624,-156.7,0.00010959,2]
[335489543,1724269844633,-159.22,0.00010959,2]
[335489544,1724269844642,-157.56,0.00010959,2]
[335489545,1724269844651,-250.0,0.00010959,2]
[335489546,1724269844802,-151.0,0.0001099,2]
[335489547,1724269844812,-151.300293,0.0001099,2]
[335489548,1724269844821,-151.383846,0.0001099,2]
[335489549,1724269844830,-152.020892,0.0001099,2]
[335489550,1724269844843,-151.0,0.0001099,2]
[335489551,1724269844852,-151.0,0.0001099,2]
[335489552,1724269844862,-162.08193888,0.0001099,2]
[335489553,1724269844871,-162.08193888,0.0001099,2]
[335489554,1724269844880,-151.0,0.00010994,2]
[335489555,1724269844890,-47.32095038,0.00010994,2]
[335489556,1724269844903,-103.67904962,0.00010994,2]
[335489557,1724269844912,-151.0,0.00010994,2]
[335489558,1724269844921,-151.0,0.00010994,2]
[335489559,1724269844933,-646.44,0.00010999,2]
[335489560,1724269844942,-595.13370754,0.00010999,3]
[335489561,1724269844953,-408.64836222,0.00010999,3]
[335489562,1724269844962,-1003.78206976,0.00010999,3]
[335489563,1724269844971,-1003.78206976,0.00010999,3]
[335489564,1724269844981,-1003.78206975,0.00010999,3]
[335489565,1724269844990,-151.0,0.00010999,2]
[335489566,1724269844999,-151.0,0.00010999,2]
[335489567,1724269845009,-151.0,0.00010999,2]
[335489568,1724269845017,-151.0,0.00010999,2]
[335489569,1724269845027,-500.0,0.00010999,2]
[335489570,1724269845036,-500.0,0.00010999,2]
[335489571,1724269845045,-6611.81430112,0.00011,2]
[335489572,1724269845056,-460.56973873,0.00011,2]
[335489573,1724269845067,-4449.47816156,0.00011,2]
[335489574,1724269845085,-496.786,0.00011,2]
[335489575,1724269845099,-5706.9748694,0.00011,2]
[335489576,1724269845124,-676.96199,0.00011,2]
[335489577,1724269845136,-532.36978236,0.00011,2]
[335489578,1724269845147,-6021.9,0.00011,2]
[335489579,1724269845423,-7655.68224347,0.00011,2]
[335489580,1724269845438,-1309.58396872,0.00011,2]
[335489581,1724269845450,-1664.07607832,0.00011,2]
[335489582,1724269845462,-7805.61716964,0.00011,2]
[335489583,1724269845485,-235528.93890806,0.00011,2]
[335489584,1724269845495,-47541.76363707,0.00011,2]
[335489585,1724269845506,-275.452,0.00011,2]
[335489586,1724269845518,-5284.6116546,0.00011,2]
[335489587,1724269845538,-500.0,0.00011,2]
[335489599,1724269845972,-1122.59869064,0.00011,2]
[335489601,1724269845983,-796.08169104,0.00011,2]
[335489603,1724269845994,-258.90026698,0.00011,2]
[335489607,1724269846028,-726.52366915,0.00011,2]
[335489609,1724269846041,-965.71228603,0.00011,2]
[335489611,1724269846054,-1549.39999999,0.00011,2]
[335489612,1724269846065,-6540.0001936,0.00011,2]
[335489613,1724269846077,-44469.0959454,0.00011,2]
[335489614,1724269846088,-37811.35699527,0.00011,2]
[335489615,1724269846098,-3567.11591837,0.00011,2]
[335489616,1724269846111,-253.90374581,0.00011,2]
[335489617,1724269846121,-4248.02018119,0.00011,2]
[335489618,1724269846143,-2265.95848343,0.00011,2]
[335489619,1724269846154,-315.00000008,0.00011,2]
[335489620,1724269846198,-2901.372,0.00011,2]
[335489621,1724269846209,-1011.36027468,0.00011,2]
[335489622,1724269846220,-10991.4096095,0.00011,2]
[335489623,1724269846231,-4481.46949273,0.00011,2]
[335489624,1724269846242,-3460.67152645,0.00011,2]
[335489625,1724269846253,-1026.0,0.00011,2]
[335489631,1724269985920,214.58,8.219e-05,2]
[335489636,1724270096631,472.86,8.219e-05,2]
[335489637,1724270215986,239.76,9.882e-05,2]
[335489639,1724270254498,170.32,9.871e-05,2]
[335489640,1724270262813,6819.64526065,9.899e-05,2]
[335489641,1724270353229,370.75591567,9.91e-05,2]
[335489642,1724270547868,479.42,8.219e-05,2]
[335489645,1724270611271,500.0,9.862e-05,2]
[335489646,1724270618209,250.0,9.839e-05,2]
[335489647,1724270630002,500.0,9.862e-05,2]
[335489648,1724270666710,155.0,9.91e-05,2]
[335489649,1724270678705,860.1196,9.9e-05,2]
[335489650,1724270685287,23900.0,9.9e-05,2]
[335489651,1724270746730,152.79,9.896e-05,2]
[335489652,1724270802380,760.52558661,9.9e-05,2]
[335489653,1724270815384,3690.39292377,9.9e-05,2]
[335489654,1724270846619,260.34846454,9.91e-05,2]
[335489655,1724270892390,434.79317518,9.9e-05,2]
[335489658,1724270980100,15514.75753766,9.86e-05,2]
[335489663,1724271028216,485.62,8.219e-05,2]
[335489664,1724271029717,1038.502163,9.873e-05,2]
[335489689,1724271032071,-172.1,9.924e-05,2]
[335489690,1724271032082,-150.0,9.999e-05,2]
[335489691,1724271032092,-300.0,9.999e-05,2]
[335489692,1724271032101,-219.81,0.0001,2]
[335489693,1724271032111,-500.0,0.0001,2]
[335489694,1724271032119,-500.0,0.0001,2]
[335489695,1724271032128,-500.0,0.0001,2]
[335489696,1724271032137,-500.0,0.0001,2]
[335489697,1724271032146,-500.0,0.0001,2]
[335489698,1724271032155,-500.0,0.0001,2]
[335489699,1724271032164,-437.58152017,0.0001,2]
[335489700,1724271032176,-62.41847983,0.0001,2]
[335489701,1724271032185,-500.0,0.0001,2]
[335489702,1724271032194,-326.16634914,0.0001,2]
[335489703,1724271032212,-173.83365086,0.0001,2]
[335489704,1724271032222,-500.0,0.0001,2]
[335489705,1724271032231,-500.0,0.0001,2]
[335489706,1724271032240,-500.0,0.0001,2]
[335489707,1724271032249,-500.0,0.0001,2]
[335489708,1724271032259,-500.0,0.0001,2]
[335489709,1724271032272,-500.0,0.0001,2]
[335489710,1724271032281,-500.0,0.0001,2]
[335489711,1724271032291,-500.0,0.0001,2]
[335489712,1724271032300,-500.0,0.0001,2]
[335489713,1724271032311,-197.41,0.0001,2]
[335489714,1724271032321,-500.0,0.0001,2]
[335489715,1724271032330,-500.0,0.0001,2]
[335489716,1724271032342,-500.0,0.0001,2]
[335489717,1724271032352,-500.0,0.0001,2]
[335489718,1724271032361,-500.0,0.0001,2]
[335489719,1724271032371,-500.0,0.0001,2]
[335489720,1724271032380,-500.0,0.0001,2]
[335489721,1724271032389,-500.0,0.0001,2]
[335489722,1724271032398,-500.0,0.0001,2]
[335489723,1724271032407,-500.0,0.0001,2]
[335489724,1724271032417,-500.0,0.0001,2]
[335489725,1724271032426,-500.0,0.0001,2]
[335489726,1724271032435,-500.0,0.0001,2]
[335489728,1724271032444,-135.47571233,0.0001,2]
[335489730,1724271032455,-302.77331147,0.0001,2]
[335489732,1724271032467,-61.7509762,0.0001,2]
[335489734,1724271032476,-500.0,0.0001,2]
[335489736,1724271032484,-321.7989738,0.0001,2]
[335489738,1724271032495,-178.2010262,0.0001,2]
[335489740,1724271032505,-500.0,0.0001,2]
[335489742,1724271032514,-168.2689738,0.0001,2]
[335489744,1724271032525,-331.7310262,0.0001,2]
[335489746,1724271032534,-18.4989737,0.0001,2]
[335489748,1724271032546,-481.5010263,0.0001,2]
[335489750,1724271032555,-500.0,0.0001,2]
[335489752,1724271032566,-500.0,0.0001,2]
[335489754,1724271032575,-500.0,0.0001,2]
[335489755,1724271032584,-378.93,0.0001,2]
[335489756,1724271032593,-1050.0,0.0001,2]
[335489757,1724271032603,-500.0,0.0001,2]
[335489758,1724271032612,-3321.43108418,0.0001,2]
[335489759,1724271032621,-155.0,0.00010026,2]
[335489760,1724271032631,-483.0291,0.00010189,2]
[335489761,1724271032640,-290.6721,0.00010189,2]
[335489762,1724271032649,-2500.0,0.00010189,2]
[335489763,1724271032658,-400.0,0.000102,3]
[335489764,1724271032667,-1000.0,0.00010211,2]
[335489765,1724271032676,-194526.12214979,0.00010289,2]
[335489766,1724271032688,-2423.11071755,0.00010289,2]
[335489767,1724271032702,-10730.55001468,0.00010289,2]
[335489768,1724271032717,-11935.23239639,0.00010289,2]
[335489769,1724271032731,-2777.64856701,0.00010289,2]
[335489770,1724271032743,-5494.09822519,0.00010289,2]
[335489777,1724271038117,-2537.75973198,0.00010289,2]
[335489778,1724271038129,-1001.57208,0.00010289,2]
[335489779,1724271038140,-1185.34288774,0.00010289,2]
[335489780,1724271038224,-12388.56322967,0.00010289,2]
[335489781,1724271038234,-11760.228,0.00010289,2]
[335489782,1724271038243,-800.0,0.000103,3]
[335489783,1724271038252,-1340.32,0.00010361,2]
[335489784,1724271038262,-957.48,0.00010361,2]
[335489785,1724271038275,-299.99,0.00010361,2]
[335489786,1724271038285,-1250.89,0.00010361,2]
[335489787,1724271038294,-499.99,0.00010361,2]
[335489788,1724271038304,-40067.3638,0.00010379,2]
[335489789,1724271038314,-443.0938,0.00010379,2]
[335489790,1724271038325,-500.0,0.00010379,2]
[335489791,1724271038335,-1136.01,0.00010379,2]
[335489792,1724271038346,-1200.0,0.000104,3]
[335489793,1724271038355,-485.62,0.00010466,2]
[335489794,1724271038365,-155.14587306,0.00010471,2]
[335489795,1724271038375,-687.59202699,0.00010471,2]
[335489796,1724271038384,-499.99,0.00010478,2]
[335489797,1724271038393,-1600.0,0.000105,3]
[335489798,1724271038403,-2162.74882992,0.00010566,2]
[335489799,1724271038413,-1297.88383075,0.00010566,2]
[335489800,1724271038422,-2100.0,0.000106,3]
[335489801,1724271038432,-400.0,0.000107,3]
[335489802,1724271038441,-2112.88261414,0.00010713,2]
[335489803,1724271038450,-1074.67985343,0.00010713,2]
[335489804,1724271038459,-1139.85619888,0.00010713,2]
[335489805,1724271038470,-400.0,0.000108,3]
[335489806,1724271038479,-1725.0,0.00010861,2]
[335489807,1724271038488,-320.30056244,0.00010873,2]
[335489808,1724271038498,-264.66383924,0.00010888,2]
[335489810,1724271038507,-197.1386879,0.00010888,2]
[335489812,1724271038517,-461.57873,0.0001089,2]